[Event "BCS-Floripa Super Blitz 2025"]
[Site "Florianopolis"]
[Date "2025.01.22"]
[Round "5.3"]
[White "Fernandes Filho, Bergson Fragoso"]
[Black "Kulkamp, Victor Silva"]
[Result "1-0"]
[Annotator "TA"]
[ECO "C41"]
[WhiteElo "2084"]
[BlackElo "1881"]
[PlyCount "129"]
[EventDate "2025.01.18"]
[EventType "swiss"]
[EventCountry "BRA"]
[SourceTitle "playchess.com"]
[Source "ChessBase"]
[SourceQuality "1"]
[TimeControl "180+2"]

{[%evp 13,129,27,22,3,13,13,29,33,58,44,70,47,59,62,83,83,252,278,261,283,300,308,314,308,300,299,479,267,256,184,352,243,254,183,175,162,270,260,299,278,464,349,331,258,222,179,243,185,207,163,159,153,158,158,160,145,138,121,181,174,195,175,244,210,211,210,209,204,201,187,204,203,215,211,240,240,239,238,255,243,287,278,540,281,932,793,951,933,847,757,12798,5085,6217,6124,5746,4601,29972,29973,29968,12797,29976,29978,29983,29984,29985,29984,29989,29990,29990,29986,29994,29995,29997,29996,29996,29996,29998,29999]} 1. e4 {[%emt 0:03:04]} c5 {[%emt 0:00:01]} 2. Nf3 {[%emt 0:00:00]} Nc6 {[%emt 0:00:01]} 3. c3 {[%emt 0:00:00]} e5 {[%emt 0:00:03]} 4. Bc4 {[%emt 0:00:00]} Be7 {[%emt 0:00:06]} 5. O-O {[%emt 0:00:00]} Nf6 {[%emt 0:00:02]} 6. d3 {[%emt 0:00:00]} d6 {[%emt 0:00:03]} 7. Nbd2 {[%emt 0:00:00]} O-O {[%emt 0:00:02]} 8. h3 {[%emt 0:00:00]} a6 {[%emt 0:00:03]} 9. a4 {[%emt 0:00:00]} b6 {[%emt 0:00:01]} 10. Re1 {[%emt 0:00:00]} Bb7 {[%emt 0:00:02]} 11. Nf1 {[%emt 0:00:00]} Qc7 {[%emt 0:00:16]} 12. Ng3 {[%emt 0:00:00] White is more active.} Na5 {[%emt 0:00:10]} 13. Ba2 {[%emt 0:00:00]} b5 {[%emt 0:00:15]} 14. Nf5 {[%emt 0:00:00]} Bc8 $2 {[%emt 0:00:18]} (14... c4 $16) 15. Nxe7+ $18 {[%emt 0:00:00]} Qxe7 {[%emt 0:00:01] [#]} 16. axb5 $1 {[%emt 0:00:00]} axb5 {[%emt 0:00:02]} 17. b4 {[%emt 0:00:00]} Nc6 {[%emt 0:00:07] [#]} 18. Bxf7+ $1 {[%emt 0:00:00][%mdl 512]} Qxf7 {[%emt 0:00:07]} 19. Rxa8 {[%emt 0:00:00]} Na7 $2 {[%emt 0:00:02]} (19... cxb4 20. cxb4 Nh5) 20. Ng5 {[%emt 0:00:00]} (20. bxc5 $142 Qb7 21. Qb3+ d5 22. Rxa7 Qxa7 23. exd5 (23. Nxe5 Qa4 $18)) 20... Qb7 {[%emt 0:00:02]} 21. Qb3+ {[%emt 0:00:11]} Kh8 $2 {[%emt 0:00:18] [#]} (21... c4 22. dxc4 (22. Rxa7 cxb3 23. Rxb7 Bxb7 $16) 22... Qxa8) 22. Rxa7 $1 {[%emt 0:00:12]} Qxa7 {[%emt 0:00:01]} 23. Be3 {[%emt 0:00:01]} h6 {[%emt 0:00:06]} 24. Nf3 {[%emt 0:00:04] Strongly threatening bxc5.} Nd7 {[%emt 0:01:00]} (24... c4 $142) 25. bxc5 {[%emt 0:00:02]} Nxc5 {[%emt 0:00:02]} 26. Qxb5 {[%emt 0:00:02]} Ba6 $2 {[%emt 0:00:01]} (26... Qb7 27. Qxb7 Nxb7) 27. Qc6 {[%emt 0:00:07]} Qd7 {[%emt 0:00:13]} 28. Qxd7 {[%emt 0:00:05]} Nxd7 {[%emt 0:00:00]} 29. d4 {[%emt 0:00:00]} Rc8 {[%emt 0:00:03]} (29... Bd3 30. Nh4 Bxe4 31. Bxh6 Bh7) 30. dxe5 {[%emt 0:00:05]} Nxe5 {[%emt 0:00:04]} 31. Nxe5 {[%emt 0:00:02]} dxe5 {[%emt 0:00:00][%mdl 4096] Endgame KRB-KRB. White is two pawns up.} 32. Rc1 {[%emt 0:00:01]} Bd3 {[%emt 0:00:06]} 33. f3 {[%emt 0:00:01]} Kg8 {[%emt 0:00:07]} 34. Kf2 {[%emt 0:00:02]} Kf7 {[%emt 0:00:01]} 35. Ke1 {[%emt 0:00:01]} Rd8 {[%emt 0:00:02]} (35... Rb8 $16 36. c4 Ra8) 36. c4 {[%emt 0:00:01][%cal Bc3c4,Bc4c5][%mdl 32]} Ke6 {[%emt 0:00:07]} 37. c5 {[%emt 0:00:00]} Rc8 {[%emt 0:00:08]} (37... Rb8 38. Rc3 Ba6) 38. Rd1 {[%emt 0:00:02]} Bb5 {[%emt 0:00:10]} 39. Rd6+ {[%emt 0:00:01]} Ke7 {[%emt 0:00:01]} 40. h4 {[%emt 0:00:00]} Rc6 {[%emt 0:00:02]} 41. Rd5 {[%emt 0:00:02]} Ke6 {[%emt 0:00:03]} 42. h5 {[%emt 0:00:01]} Ba4 {[%emt 0:00:03]} 43. Rd8 {[%emt 0:00:02]} Ke7 {[%emt 0:00:02]} 44. Ra8 {[%emt 0:00:01]} Bb5 {[%emt 0:00:02]} 45. Ra7+ {[%emt 0:00:01]} Kf6 {[%emt 0:00:01]} 46. g4 {[%emt 0:00:02]} Rc8 {[%emt 0:00:02]} 47. Kf2 {[%emt 0:00:01]} Rc6 $2 {[%emt 0:00:01]} (47... Rb8 {is a better defense.} 48. Kg3 Rd8) 48. Rb7 {[%emt 0:00:02]} Ba4 $2 {[%emt 0:00:01]} (48... Ba6 49. Ra7 Bd3) 49. f4 {[%emt 0:00:03]} exf4 {[%emt 0:00:04]} 50. Bd4+ {[%emt 0:00:01]} ({Less strong is} 50. Bxf4 Rxc5 51. e5+ Ke6 52. Rxg7 Bc2 $18) 50... Ke6 {[%emt 0:00:01]} 51. Rxg7 {[%emt 0:00:01]} Bc2 {[%emt 0:00:02]} 52. Rg6+ {[%emt 0:00:02]} Kd7 {[%emt 0:00:01]} 53. Rxc6 {[%emt 0:00:03]} Kxc6 {[%emt 0:00:00] KB-KB. White is two pawns up.} 54. Kf3 {[%emt 0:00:00]} Kd7 {[%emt 0:00:08]} 55. Kxf4 {[%emt 0:00:01]} Ke6 {[%emt 0:00:00]} 56. Bg7 {[%emt 0:00:05]} Kf7 {[%emt 0:00:03]} 57. Bxh6 {[%emt 0:00:01]} Ba4 {[%emt 0:00:02]} 58. g5 {[%emt 0:00:03][%cal Bg4g5,Bg5g6][%mdl 32]} Ke6 {[%emt 0:00:01]} 59. g6 {[%emt 0:00:01]} Kf6 {[%emt 0:00:00]} 60. Bg5+ {[%emt 0:00:03]} Kg7 {[%emt 0:00:02]} 61. Kf5 {[%emt 0:00:03]} Bb5 {[%emt 0:00:04]} 62. h6+ {[%emt 0:00:02][%cal Bh5h6,Bh6h7][%mdl 32]} Kg8 {[%emt 0:00:02]} 63. Bf6 {[%emt 0:00:01]} Bd7+ {[%emt 0:00:03]} 64. Kg5 {[%emt 0:00:01]} Be8 {[%emt 0:00:02]} 65. h7+ {[%emt 0:00:01]} 1-0

[Event "BCS-Floripa Super Blitz 2025"]
[Site "Florianopolis"]
[Date "2025.01.22"]
[Round "5.4"]
[White "Melian, Juan Sebastian"]
[Black "Santiago, Yago De Moura"]
[Result "1-0"]
[Annotator "TA"]
[ECO "A10"]
[WhiteElo "2305"]
[BlackElo "2451"]
[PlyCount "108"]
[EventDate "2025.01.18"]
[EventType "swiss"]
[EventCountry "BRA"]
[SourceTitle "playchess.com"]
[Source "ChessBase"]
[SourceQuality "1"]
[TimeControl "180+2"]

{[%evp 9,108,28,28,19,35,22,64,3,8,0,0,13,7,-5,0,0,17,0,0,0,0,0,0,0,21,8,14,0,0,0,0,0,53,40,109,-39,43,-56,16,-53,-53,-88,-78,-98,-63,-102,-85,-113,-113,-216,-216,-257,-189,-372,-182,-358,-341,-384,-367,-387,-360,-399,-389,-1033,-550,-524,-535,-491,-469,-415,-208,-196,-126,-118,-118,-249,-142,-402,-422,-359,-217,-904,-24,-47,0,0,171,0,0,0,663,0,0,-168,-154,-441,-428,-645,-454,-431,0]} 1. Nf3 {[%emt 0:00:01]} e6 {[%emt 0:00:01]} 2. c4 {[%emt 0:00:03]} f5 {[%emt 0:00:02]} 3. Nc3 {[%emt 0:00:02]} Nf6 {[%emt 0:00:01]} 4. g3 {[%emt 0:00:12]} Bb4 {[%emt 0:00:02]} 5. Bg2 {[%emt 0:00:04]} O-O {[%emt 0:00:02]} 6. O-O {[%emt 0:00:02]} d6 {[%emt 0:00:04]} 7. Qb3 {[%emt 0:00:22]} a5 {[%emt 0:00:05]} 8. a3 {[%emt 0:00:04]} (8. Na4 $14) 8... Bxc3 $11 {[%emt 0:00:02]} 9. Qxc3 {[%emt 0:00:01]} a4 {[%emt 0:00:01]} 10. d3 {[%emt 0:00:10][%cal Bd2d3,Bd3d4,Bd4d5][%mdl 32]} Nc6 {[%emt 0:00:04]} 11. d4 {[%emt 0:00:27]} Ne4 {[%emt 0:00:16]} 12. Qc2 {[%emt 0:00:01]} Qe7 {[%emt 0:00:02]} 13. Rd1 {[%emt 0:00:22]} Bd7 {[%emt 0:00:01]} 14. d5 {[%emt 0:00:13]} Nd8 {[%emt 0:00:33]} 15. Nd4 {[%emt 0:00:32]} Nc5 {[%emt 0:00:11]} (15... e5 16. Nxf5 Bxf5 17. Bxe4 $16) 16. dxe6 {[%emt 0:00:05]} Bxe6 {[%emt 0:00:02]} 17. Be3 {[%emt 0:00:16]} Kh8 {[%emt 0:00:13]} 18. Rd2 {[%emt 0:00:22]} Bd7 {[%emt 0:00:09]} 19. Rad1 {[%emt 0:00:00]} Ne4 {[%emt 0:00:02]} 20. Rd3 {[%emt 0:00:02]} Nc6 {[%emt 0:00:02]} (20... b6 $11) 21. Nxc6 {[%emt 0:00:03]} bxc6 {[%emt 0:00:16]} (21... Bxc6 $14 22. c5 Rfe8) 22. Bd4 {[%emt 0:00:03]} ({White should try} 22. c5 $1 $16) 22... Qf7 {[%emt 0:00:14]} (22... c5 $15 23. Be3 Bc6) 23. Rf3 {[%emt 0:00:04]} (23. f3 $14 Ng5 24. c5) 23... Kg8 {[%emt 0:00:08]} (23... c5 $15 24. Be3 Rab8) 24. h4 {[%emt 0:00:01]} (24. c5 $11) 24... c5 $15 {[%emt 0:00:06]} 25. Be3 {[%emt 0:00:04]} Bc6 {[%emt 0:00:03]} 26. Bf4 {[%emt 0:00:01]} Rfe8 {[%emt 0:00:07]} 27. Re3 {[%emt 0:00:01]} Rab8 {[%emt 0:00:07]} 28. Bxe4 {[%emt 0:00:11]} fxe4 {[%emt 0:00:08]} 29. Qd2 {[%emt 0:00:04] White is weak on the light squares} (29. Rb1 $17) 29... Qxc4 $19 {[%emt 0:00:10]} 30. Rc3 {[%emt 0:00:01]} Qf7 {[%emt 0:00:01]} 31. Qe3 $2 {[%emt 0:00:02]} (31. Qc1) 31... Rb5 {[%emt 0:00:02]} (31... Rxb2 $142 32. Kf1 Reb8 33. Bxd6 Rb1 (33... cxd6 $2 34. Rxd6 Bb5 35. Rd2 $19)) 32. Rd2 $2 {[%emt 0:00:02]} (32. Qc1) 32... Reb8 {[%emt 0:00:01]} 33. Rcc2 {[%emt 0:00:03]} Rb3 {[%emt 0:00:02]} 34. Rc3 {[%emt 0:00:04]} Rxb2 {[%emt 0:00:01]} 35. Rxb2 {[%emt 0:00:01]} Rxb2 {[%emt 0:00:01]} 36. Kh2 $2 {[%emt 0:00:05]} (36. Rc1) 36... h6 {[%emt 0:00:01]} 37. Rc1 {[%emt 0:00:01]} Rb3 {[%emt 0:00:04]} 38. Qd2 {[%emt 0:00:01]} g5 {[%emt 0:00:09]} 39. Be3 {[%emt 0:00:02]} Kh7 {[%emt 0:00:10]} (39... Rxa3 40. hxg5 hxg5 41. Rh1 $19) (39... gxh4 $142 40. Rg1 Rxa3 41. gxh4+ Kh7) 40. hxg5 {[%emt 0:00:04]} hxg5 {[%emt 0:00:01]} ({Black should try} 40... Rxa3 $19 41. Rh1 Ra2) 41. Kg2 $17 {[%emt 0:00:05]} Kg6 {[%emt 0:00:04]} (41... Rxa3 $6 42. Qb2 Rb3 43. Rh1+ Kg6 44. Qh8 $11) 42. Qa5 {[%emt 0:00:00]} (42. Rh1 $17) 42... Rb2 {[%emt 0:00:08]} (42... Rxa3 $19 {and ...Rb3 should not be overlooked} 43. Rxc5 dxc5 44. Qxc5 Rxe3 45. Qxc6+ Kh5 46. fxe3 a3) 43. Kf1 $2 {[%emt 0:00:01][%mdl 8192]} (43. Re1 $17) 43... Bb5 $19 {[%emt 0:00:03]} 44. Re1 {[%emt 0:00:01]} Rb3 {[%emt 0:00:13]} 45. Qa8 $2 {[%emt 0:00:02]} (45. Kg1) 45... Kf5 $2 {[%emt 0:00:04]} (45... Rxa3 46. Kg1 $19) (45... Rxe3 $19 46. Kg1 Rxa3 (46... Rxe2 $2 47. Rxe2 Bxe2 48. Qxe4+ Kf6 49. Qxe2 $19) 47. Qxe4+ Kg7) 46. Kg2 {[%emt 0:00:02]} Qe6 {[%emt 0:00:08]} (46... Rxa3 47. g4+ Kf6 (47... Kxg4 48. Qxe4+) 48. Rh1 Bxe2 49. Rh8 Rxe3 (49... Bxg4 $2 50. Rf8 $18) 50. Rf8 Bf3+ 51. Kg3 $11) (46... Ke6 $15 {should be considered.} 47. Bxg5 e3 (47... Rxa3 48. Rd1 $11)) 47. Qf8+ {[%emt 0:00:02]} Qf6 $2 {[%emt 0:00:01] [#]} (47... Ke5 $1 $11) 48. Qc8+ $2 {[%emt 0:00:01]} (48. Qg8 $1 $18) 48... Kg6 {[%emt 0:00:01]} 49. Qg8+ {[%emt 0:00:01]} Kf5 $2 {[%emt 0:00:02][%mdl 8192]} (49... Qg7 $11 50. Qe6+ Qf6 51. Qg8+ Qg7) 50. Qc8+ $2 {[%emt 0:00:02]} ({White has to play} 50. g4+ $18 Ke5 (50... Kxg4 51. Qh7 Rxe3 52. fxe3) 51. Bxg5) 50... Ke5 $11 {[%emt 0:00:01]} 51. Qxc7 $2 {[%emt 0:00:01] [#]} (51. Qg8 $11 {and White stays safe.} Bd7 (51... Rxa3 $2 52. Bc1 $18) 52. Rd1 (52. Bxg5 Qe6 $11)) 51... Bxe2 $1 $19 {[%emt 0:00:07][%cal Ob3e3]} (51... Rxa3 $2 52. Bxc5 Rb3 53. Rd1 $18) 52. Rxe2 $2 {[%emt 0:00:03]} (52. Kg1 $17 {keeps fighting.}) 52... Qf3+ {[%emt 0:00:00]} (52... Rxa3 $2 53. Re1 $18 (53. Bxc5 Qf3+ 54. Kh2 Qh5+ 55. Kg2 Qf3+ 56. Kh2 Qh5+ 57. Kg2 Qf3+ $11)) 53. Kh2 {[%emt 0:00:00]} (53. Kh3 $142 Rb1 (53... Qxe2 54. Qg7+ Kd5 55. Qf7+ Kc6 56. Qe8+ Kb6 57. Qb8+ Ka6 58. Qe8 $19) 54. Qe7+ Kd5 55. Rd2+ (55. Qxg5+ $2 Kc6 $19) 55... Kc4 56. Rc2+ (56. Qxg5 $2 Rh1#) (56. Qe6+ $2 Kc3 $19) 56... Kb3 57. Rc1 Rxc1 58. Bxc1 Qh1+ (58... Qxf2 59. Bxg5 Qf1+ 60. Kh2 $11) 59. Kg4 Qxc1 60. Qxd6) 53... Qxe2 {[%emt 0:00:02]} 54. Qg7+ {[%emt 0:00:05]} Kf5 $2 {[%emt 0:00:09]} (54... Kd5 $19 55. Qf7+ Kc6 56. Qe8+ Kb6 57. Qb8+ Ka6 58. Qc8+ (58. Qxd6+ $2 {loses.} Rb6 $19) 58... Ka5 59. Qc7+ Rb6 60. Qa7+ Kb5 61. Qd7+ Kc4 62. Qe6+ Kc3 63. Qxe4 Rb3) 1-0

[Event "BCS-Floripa Super Blitz 2025"]
[Site "Florianopolis"]
[Date "2025.01.22"]
[Round "5.4"]
[White "Campagnolo, Fabiola"]
[Black "Lemos, Dawton Almino"]
[Result "0-1"]
[Annotator "TA"]
[ECO "A45"]
[WhiteElo "1760"]
[BlackElo "2172"]
[PlyCount "72"]
[EventDate "2025.01.18"]
[EventType "swiss"]
[EventCountry "BRA"]
[SourceTitle "playchess.com"]
[Source "ChessBase"]
[SourceQuality "1"]
[TimeControl "180+2"]

{[%evp 9,72,-14,0,-18,-9,-10,-3,0,0,-3,26,29,66,47,75,68,64,52,49,46,55,53,80,52,81,63,72,69,87,54,75,0,0,0,4,-37,-51,-132,-93,-108,5,0,0,0,0,1,85,-742,-693,-6769,-6769,-29988,-6759,-5745,-5650,-29989,-29990,-29989,-29990,-29990,-1349,-1247,-1243,-29997,-29998]} 1. d4 {[%emt 0:00:02]} Nf6 {[%emt 0:00:02]} 2. e3 {[%emt 0:00:02]} g6 {[%emt 0:00:02]} 3. Bd3 {[%emt 0:00:02]} Bg7 {[%emt 0:00:03]} 4. f4 {[%emt 0:00:04]} d6 {[%emt 0:00:01]} 5. Nf3 {[%emt 0:00:02]} Nc6 {[%emt 0:00:03][%cal Oe7e5]} 6. c3 {[%emt 0:00:01]} O-O {[%emt 0:00:03][%cal Oe7e5]} 7. e4 {[%emt 0:00:03] [#]} e5 $1 {[%emt 0:00:09]} 8. fxe5 {[%emt 0:00:05]} (8. d5 Ne7) 8... dxe5 {[%emt 0:00:03]} 9. d5 {[%emt 0:00:02]} Nb8 {[%emt 0:00:06][%cal Bc6b8,Bb8d7,Bd7c5][%mdl 32]} 10. O-O {[%emt 0:00:03][%cal Oc3c4]} Nh5 {[%emt 0:00:10]} 11. c4 {[%emt 0:00:11]} a5 {[%emt 0:00:04]} 12. Bg5 {[%emt 0:00:03]} f6 {[%emt 0:00:03]} 13. Bd2 {[%emt 0:00:04]} Nd7 {[%emt 0:00:15]} 14. Nc3 {[%emt 0:00:04]} Nc5 {[%emt 0:00:02]} 15. Bc2 {[%emt 0:00:09]} Kh8 {[%emt 0:00:08]} 16. Ne1 {[%emt 0:00:02]} Qd7 {[%emt 0:00:37]} 17. Nd3 {[%emt 0:00:06]} Nxd3 {[%emt 0:00:15]} 18. Bxd3 {[%emt 0:00:02]} b6 {[%emt 0:00:10]} 19. Be2 {[%emt 0:00:03]} Nf4 {[%emt 0:00:01]} 20. Bxf4 {[%emt 0:00:03]} ({White should play} 20. Bf3 $16) 20... exf4 $11 {[%emt 0:00:01]} 21. Rxf4 {[%emt 0:00:03]} Qd6 {[%emt 0:00:03]} 22. Rh4 {[%emt 0:00:13]} f5 {[%emt 0:00:01]} 23. Qc2 {[%emt 0:00:17]} (23. Kh1 $15) 23... Bd7 {[%emt 0:00:07]} 24. Bd3 {[%emt 0:00:02] [#]} f4 {[%emt 0:00:05] [#] Black is more active.} (24... a4 $1 $17 {[%cal Ra4a3] aiming for ...a3.} 25. exf5 Qe7 (25... Bxf5 26. Bxf5 Rxf5 27. Nxa4 $11)) 25. e5 $1 {[%emt 0:00:09]} Qxe5 {[%emt 0:00:08]} (25... Bxe5 $2 {loses.} 26. Bxg6 Bd4+ 27. Kh1 $18) 26. Bxg6 {[%emt 0:00:08]} h6 $1 {[%emt 0:00:00]} 27. Rf1 {[%emt 0:00:22]} f3 {[%emt 0:00:04]} 28. gxf3 $2 {[%emt 0:00:21][%mdl 8192]} (28. g3 $16) 28... Qg5+ $19 {[%emt 0:00:01]} 29. Rg4 {[%emt 0:00:23]} Bxg4 {[%emt 0:00:02]} 30. fxg4 {[%emt 0:00:01]} Qxg4+ {[%emt 0:00:01]} (30... Bd4+ $142 31. Rf2 Qxg4+ (31... Rxf2 $2 32. Qxf2 Qxg4+ 33. Kf1 $19) 32. Kf1 Rxf2+ (32... Bxf2 33. Qxf2 Qxg6 34. Ne4 Qxe4 35. Kg1 Rxf2 36. Kxf2 Rf8+ 37. Kg1 Qg6+ 38. Kh1 Rf1#) 33. Qxf2 Bxf2 34. Kxf2 Rf8+ (34... Qxg6 $2 35. Ke3 $19) 35. Ke1 Qxg6 (35... Qg1+ $2 36. Kd2 $19) 36. Kd2 Rf3 37. Nd1 Qd3+ 38. Kc1 Rf1 (38... Qxc4+ 39. Kd2 Rd3+ 40. Ke1 Qc1 41. Kf1 Rd2 42. h4 Qxd1#) 39. b3 Qxd1+ 40. Kb2 Qc1#) 31. Qg2 {[%emt 0:00:03] White is weak on the dark squares} Bd4+ {[%emt 0:00:02]} 32. Kh1 {[%emt 0:00:05]} Rxf1+ {[%emt 0:00:01]} 33. Qxf1 {[%emt 0:00:01]} Qxg6 {[%emt 0:00:02]} 34. Ne2 {[%emt 0:00:08]} Be5 {[%emt 0:00:10]} (34... Qe4+ $142 35. Qg2 Qb1+ 36. Ng1 Rg8 (36... Qxb2 $2 37. Qf1 $19) (36... Qxg1+ $2 37. Qxg1 Bxg1 38. Kxg1 $19) 37. h4 Rxg2 (37... Qxg1+ $2 38. Qxg1 Bxg1 39. d6 $19) 38. Kxg2 Qxg1+ 39. Kf3 Qe3+ (39... Bxb2 $2 40. d6 $19) 40. Kg4 h5+ (40... Bxb2 {leads to mate.} 41. h5 Qf2 42. d6 Be5 43. a4 Qf4+ 44. Kh3 Qg3#) 41. Kxh5 Qg1 (41... Bxb2 42. Kg4 Kg7 43. d6 Qe2+ 44. Kh3 Be5 45. h5 Qf3+ 46. Kh4 Qg3#) 42. b3 Kg7 43. a4 Qg6#) 35. Qf3 {[%emt 0:00:05]} Rg8 {[%emt 0:00:03] ( -> ...Qb1+)} 36. b3 {[%emt 0:00:05]} Qb1+ {[%emt 0:00:02]} 0-1

[Event "BCS-Floripa Super Blitz 2025"]
[Site "Florianopolis"]
[Date "2025.01.22"]
[Round "5.5"]
[White "Gauche, Charles"]
[Black "Do Valle Cardoso, Lucas"]
[Result "0-1"]
[Annotator "TA"]
[ECO "D00"]
[WhiteElo "2139"]
[BlackElo "2401"]
[PlyCount "44"]
[EventDate "2025.01.18"]
[EventType "swiss"]
[EventCountry "BRA"]
[SourceTitle "playchess.com"]
[Source "ChessBase"]
[SourceQuality "1"]
[TimeControl "180+2"]

{[%evp 9,44,6,26,28,25,35,35,22,23,0,0,-7,0,0,8,-8,0,-81,-104,-84,-77,-151,-143,-152,-152,-140,-129,-367,-9,-11,-17,-12,-32,-29985,-29986,-29993,-29987]} 1. d4 {[%emt 0:00:00]} d5 {[%emt 0:00:02]} 2. Bf4 {[%emt 0:00:02]} c5 {[%emt 0:00:01][%cal Bc7c5,Bc5c4][%mdl 32]} 3. c3 {[%emt 0:00:02]} Nc6 {[%emt 0:00:00]} 4. e3 {[%emt 0:00:02]} Qb6 {[%emt 0:00:10]} 5. Qb3 {[%emt 0:00:03]} c4 {[%emt 0:00:01]} 6. Qc2 {[%emt 0:00:02]} e5 {[%emt 0:00:01]} 7. dxe5 {[%emt 0:00:07] Strongly threatening Nd2.} Bf5 {[%emt 0:00:03]} 8. Qc1 {[%emt 0:00:03]} g5 {[%emt 0:00:01]} 9. Bg3 {[%emt 0:00:02]} h5 {[%emt 0:00:17]} 10. h3 {[%emt 0:00:05]} Bg7 {[%emt 0:00:14][%cal Og8e7]} 11. Nf3 {[%emt 0:00:15]} Nge7 $36 {[%emt 0:00:08][%mdl 2048] Black has some pressure.} 12. Be2 {[%emt 0:00:09]} g4 {[%emt 0:00:13]} (12... Rg8 {with more complications.} 13. Nbd2 g4 14. hxg4 hxg4 15. Nd4 Bxe5 16. Nxf5 Nxf5 17. Bxe5 Nxe5 18. Qc2 Ne7) 13. hxg4 {[%emt 0:00:02]} (13. Nd4 $11 {remains equal.}) 13... hxg4 $17 {[%emt 0:00:00]} 14. Rxh8+ {[%emt 0:02:36]} Bxh8 15. Nh4 {[%emt 0:00:00] White is weak on the light squares} (15. Nd4 $142) 15... Bxe5 {[%emt 0:00:19] Black has more active pieces.} ({Worse is} 15... Nxe5 16. Nxf5 Nxf5 17. Bxe5 Bxe5 18. Bxg4 $16) 16. Bxe5 {[%emt 0:00:00]} Nxe5 {[%emt 0:00:01]} 17. Nxf5 {[%emt 0:00:00]} Nxf5 {[%emt 0:00:01]} 18. e4 $2 {[%emt 0:00:00]} dxe4 $2 {[%emt 0:01:09]} (18... g3 $19 19. Qf4 gxf2+ (19... Qxb2 20. Qxe5+ Kf8 21. Qxf5 $14) 20. Qxf2 Ne3 (20... dxe4 21. Qxf5 Qg1+ 22. Qf1 $11) (20... Qxf2+ 21. Kxf2 dxe4 22. g4 $17)) 19. Qf4 $1 $11 {[%emt 0:00:00][%csl LRe4,LRe5,LRf5,LRg4]} Qe6 {[%emt 0:00:00] Threatens to win with ...Nd3+.} (19... Qxb2 $2 {too greedy.} 20. Qxe5+ Kf8 21. Qh8+ Ke7 22. Qxa8 $18) 20. Nd2 $1 {[%emt 0:00:00][%cal Od2c4]} Nd3+ {[%emt 0:00:19]} 21. Kf1 $2 {[%emt 0:00:00][%mdl 8192]} (21. Bxd3 $15 exd3+ 22. Kf1) 21... Nxf4 {[%emt 0:00:01] A dynamic duo of knights.} 22. Ke1 {[%emt 0:00:16]} Nd3+ {[%emt 0:00:45]} 0-1

[Event "BCS-Floripa Super Blitz 2025"]
[Site "Florianopolis"]
[Date "2025.01.22"]
[Round "5.5"]
[White "Cordeiro, Marco Aurelio Zaror"]
[Black "Bieging, Luca Jurgen"]
[Result "1-0"]
[Annotator "TA"]
[ECO "B23"]
[WhiteElo "2049"]
[BlackElo "1944"]
[PlyCount "77"]
[EventDate "2025.01.18"]
[EventType "swiss"]
[EventCountry "BRA"]
[SourceTitle "playchess.com"]
[Source "ChessBase"]
[SourceQuality "1"]
[TimeControl "180+2"]

{[%evp 14,77,0,0,28,8,3,24,75,64,109,115,132,118,337,121,132,85,91,97,96,99,95,28,29,33,52,56,57,-99,137,68,68,68,135,85,84,86,88,87,94,94,556,558,547,547,533,519,680,524,800,777,963,926,1082,1046,910,1019,1019,781,1012,937,1897,1774,2096,1814]} 1. e4 {[%emt 0:00:02]} c5 {[%emt 0:00:03]} 2. Nc3 {[%emt 0:00:00]} Nc6 {[%emt 0:00:01]} 3. f4 {[%emt 0:00:00]} g6 {[%emt 0:00:02]} 4. Nf3 {[%emt 0:00:01]} Bg7 {[%emt 0:00:01]} 5. Bc4 {[%emt 0:00:01]} d6 {[%emt 0:00:06]} 6. O-O {[%emt 0:00:03]} Nf6 {[%emt 0:00:01]} 7. d3 {[%emt 0:00:05]} O-O {[%emt 0:00:04]} 8. Qe1 {[%emt 0:00:01]} Na5 {[%emt 0:00:12]} 9. Qh4 {[%emt 0:00:12][%cal Of4f5]} Nxc4 {[%emt 0:00:02]} 10. dxc4 {[%emt 0:00:01][%cal Of4f5]} h5 {[%emt 0:00:14]} (10... Be6 $11) 11. Bd2 $16 {[%emt 0:00:23]} b6 {[%emt 0:00:13]} 12. Rae1 {[%emt 0:00:12] White is more active.} Bb7 {[%emt 0:00:17]} 13. f5 {[%emt 0:00:03]} e5 $2 {[%emt 0:00:41]} (13... Rc8 $16 14. Ng5 Qd7) 14. fxg6 $2 {[%emt 0:00:38]} (14. Bg5 $18 {is the precise move to win.}) 14... fxg6 {[%emt 0:00:03]} 15. Bg5 {[%emt 0:00:02]} (15. b3 $142) 15... Qe8 {[%emt 0:00:06]} 16. Rd1 {[%emt 0:00:25]} Qe6 {[%emt 0:00:08]} 17. b3 {[%emt 0:00:08]} Rae8 {[%emt 0:00:47]} 18. Nb5 {[%emt 0:00:13]} (18. h3 $16) 18... Nxe4 $11 {[%emt 0:00:07]} (18... Bxe4 $2 19. Rxd6 (19. Nxd6 Bxf3 20. Nxe8 Bxd1 $14) 19... Qg4 20. Rxf6 $18 (20. Bxf6 Bxf6 21. Rxf6 Bxf3 $16)) 19. Nc7 {[%emt 0:00:06]} Qd7 {[%emt 0:00:19]} 20. Nxe8 {[%emt 0:00:06]} Rxe8 {[%emt 0:00:04]} 21. Rfe1 $2 {[%emt 0:00:05]} (21. Bc1 $14 {keeps the upper hand.}) 21... Nxg5 $2 {[%emt 0:00:02]} (21... Nc3 $17 {[%cal Oe5e4] keeps the pressure on. and ...e4! should not be overlooked} 22. Rd3 e4) 22. Qxg5 {[%emt 0:00:07]} (22. Nxg5 $16 {and Rf1 should not be overlooked} Bf6 23. Qg3) 22... Bxf3 {[%emt 0:00:04]} 23. gxf3 {[%emt 0:00:02]} Qe6 {[%emt 0:00:05]} (23... Kh7 $14) 24. f4 {[%emt 0:00:09]} ({White should try} 24. Qd2) 24... Rf8 {[%emt 0:00:04]} 25. fxe5 {[%emt 0:00:10]} Bxe5 {[%emt 0:00:01]} 26. Rf1 {[%emt 0:00:04]} Rxf1+ {[%emt 0:00:04]} 27. Rxf1 $16 {[%emt 0:00:01][%mdl 4096] Endgame KQR-KQB} Qd7 $2 {[%emt 0:00:02][%mdl 8192]} (27... Bd4+ $16 {is a better chance.} 28. Kh1 Kh7) 28. Qxg6+ $18 {[%emt 0:00:05]} Qg7 {[%emt 0:00:00]} 29. Qxg7+ {[%emt 0:00:04]} Kxg7 {[%emt 0:00:01] KR-KB} 30. Kg2 {[%emt 0:00:06]} a5 {[%emt 0:00:02]} 31. Kf3 {[%emt 0:00:03]} Kf6 {[%emt 0:00:02]} 32. Ke4+ {[%emt 0:00:01]} Ke7 {[%emt 0:00:03]} 33. h3 {[%emt 0:00:08]} h4 {[%emt 0:00:03]} 34. Rf5 {[%emt 0:00:03]} Ke6 {[%emt 0:00:02]} 35. Rh5 {[%emt 0:00:02]} Bg3 {[%emt 0:00:02]} 36. Rh6+ {[%emt 0:00:02]} Kd7 {[%emt 0:00:01]} 37. Kd5 {[%emt 0:00:01]} Kc7 {[%emt 0:00:03]} 38. Rh7+ {[%emt 0:00:02]} Kb8 {[%emt 0:00:03]} 39. Kc6 {[%emt 0:00:02]} 1-0